[Event "Titled Tuesday Blitz November 16 2021"]
[White "Leitao, Rafael"]
[Black "Svane, Frederik"]
[WhiteFideId "2101246"]
[BlackFideId "12923044"]
[WhiteElo "2609"]
[BlackElo "2459"]
[Result "0-1"]
[Round "06"]
[TimeControl "180+1"]
[Date "2021.11.16"]
[WhiteClock "0:00:02"]
[BlackClock "0:00:03"]

1. c4 {[%clk 0:03:00]}  e6 {[%clk 0:02:58]} 2. g3 {[%clk 0:03:00]}  Nf6 {[%clk 0:02:57]} 3. Bg2 {[%clk 0:03:00]}  d5 {[%clk 0:02:56]} 4. Nf3 {[%clk 0:03:00]}  d4 {[%clk 0:02:42]} 5. O-O {[%clk 0:02:57]}  Be7 {[%clk 0:02:41]} 6. b4 {[%clk 0:02:37]}  O-O {[%clk 0:02:38]} 7. Bb2 {[%clk 0:02:37]}  c5 {[%clk 0:02:38]} 8. d3 {[%clk 0:02:34]}  Nc6 {[%clk 0:02:19]} 9. bxc5 {[%clk 0:02:32]}  e5 {[%clk 0:02:16]} 10. Nbd2 {[%clk 0:02:32]}  Nd7 {[%clk 0:02:15]} 11. Ne4 {[%clk 0:02:13]}  Nxc5 {[%clk 0:02:06]} 12. Nxc5 {[%clk 0:02:10]}  Bxc5 {[%clk 0:02:07]} 13. Nd2 {[%clk 0:02:10]}  Bg4 {[%clk 0:02:01]} 14. h3 {[%clk 0:02:08]}  Be6 {[%clk 0:02:01]} 15. Nb3 {[%clk 0:01:58]}  Be7 {[%clk 0:01:58]} 16. f4 {[%clk 0:01:49]}  exf4 {[%clk 0:01:45]} 17. gxf4 {[%clk 0:01:41]}  Qd7 {[%clk 0:01:45]} 18. Kh2 {[%clk 0:01:36]}  a5 {[%clk 0:01:21]} 19. Bxc6 {[%clk 0:01:25]}  bxc6 {[%clk 0:01:21]} 20. Nxd4 {[%clk 0:01:26]}  Bxh3 {[%clk 0:01:18]} 21. Rf3 {[%clk 0:00:40]}  Bg4 {[%clk 0:01:18]} 22. Rg3 {[%clk 0:00:40]}  Bf6 {[%clk 0:01:18]} 23. Qg1 {[%clk 0:00:39]}  h5 {[%clk 0:01:10]} 24. Rb1 {[%clk 0:00:36]}  Rab8 {[%clk 0:01:00]} 25. Nb3 {[%clk 0:00:26]}  Bxb2 {[%clk 0:00:48]} 26. Rxb2 {[%clk 0:00:27]}  Qd6 {[%clk 0:00:31]} 27. Rd2 {[%clk 0:00:18]}  Qxf4 {[%clk 0:00:26]} 28. Qd4 {[%clk 0:00:18]}  Qg5 {[%clk 0:00:21]} 29. Qc5 {[%clk 0:00:14]}  Qf4 {[%clk 0:00:15]} 30. Qe3 {[%clk 0:00:12]}  Qf6 {[%clk 0:00:12]} 31. Kg2 {[%clk 0:00:12]}  Rfe8 {[%clk 0:00:12]} 32. Qf2 {[%clk 0:00:12]}  Qd6 {[%clk 0:00:05]} 33. Nc5 {[%clk 0:00:11]}  Rb1 {[%clk 0:00:05]} 34. d4 {[%clk 0:00:07]}  Qe7 {[%clk 0:00:04]} 35. Nd3 {[%clk 0:00:06]}  Qe4+ {[%clk 0:00:03]} 36. Rf3 {[%clk 0:00:06]}  Bxf3+ {[%clk 0:00:04]} 37. exf3 {[%clk 0:00:06]}  Qg6+ {[%clk 0:00:03]} 38. Kh2 {[%clk 0:00:06]}  Qd6+ {[%clk 0:00:02]} 39. f4 {[%clk 0:00:06]}  Qg6 {[%clk 0:00:02]} 40. Ne5 {[%clk 0:00:06]}  Qf5 {[%clk 0:00:02]} 41. Qg3 {[%clk 0:00:06]}  g6 {[%clk 0:00:02]} 42. Rg2 {[%clk 0:00:06]}  Reb8 {[%clk 0:00:02]} 43. Nf3 {[%clk 0:00:05]}  R8b2 {[%clk 0:00:02]} 44. Nh4 {[%clk 0:00:05]}  Rxg2+ {[%clk 0:00:02]} 45. Nxg2 {[%clk 0:00:05]}  Qc2 {[%clk 0:00:03]} 46. f5 {[%clk 0:00:05]}  Qxf5 {[%clk 0:00:03]} 47. Qd6 {[%clk 0:00:05]}  Qf1 {[%clk 0:00:02]} 48. Qxc6 {[%clk 0:00:03]}  Rb2 {[%clk 0:00:02]} 49. Qc8+ {[%clk 0:00:02]}  Kg7 {[%clk 0:00:03]} 50. Qh3 {[%clk 0:00:03]}  Qf4+ {[%clk 0:00:03]} 51. Kh1 {[%clk 0:00:02]}  Rb1+ {[%clk 0:00:03]} 0-1


[Site "https://www.chess.com"]

[Event "Titled Tuesday Blitz November 16 2021"]
[White "Leiva, Gianmarco"]
[Black "Stoyanov, Tsvetan"]
[WhiteFideId "3804399"]
[BlackFideId "2917173"]
[WhiteElo "2318"]
[BlackElo "2191"]
[Result "0-1"]
[Round "06"]
[TimeControl "180+1"]
[Date "2021.11.16"]
[WhiteClock "0:00:57"]
[BlackClock "0:01:18"]

1. e4 {[%clk 0:03:00]}  c5 {[%clk 0:03:00]} 2. Nf3 {[%clk 0:03:00]}  d6 {[%clk 0:03:00]} 3. Bb5+ {[%clk 0:03:00]}  Bd7 {[%clk 0:03:00]} 4. Bxd7+ {[%clk 0:03:00]}  Nxd7 {[%clk 0:02:58]} 5. c3 {[%clk 0:02:54]}  Ngf6 {[%clk 0:02:56]} 6. Qe2 {[%clk 0:02:53]}  g6 {[%clk 0:02:53]} 7. d4 {[%clk 0:02:53]}  Bg7 {[%clk 0:02:50]} 8. O-O {[%clk 0:02:53]}  e5 {[%clk 0:02:49]} 9. dxe5 {[%clk 0:02:49]}  dxe5 {[%clk 0:02:49]} 10. Bg5 {[%clk 0:02:39]}  O-O {[%clk 0:02:46]} 11. Na3 {[%clk 0:02:38]}  h6 {[%clk 0:02:45]} 12. Bxf6 {[%clk 0:02:38]}  Bxf6 {[%clk 0:02:28]} 13. Nc4 {[%clk 0:02:35]}  Qc7 {[%clk 0:02:17]} 14. Rfd1 {[%clk 0:02:31]}  Rfd8 {[%clk 0:02:15]} 15. Rd5 {[%clk 0:02:29]}  Nb6 {[%clk 0:02:10]} 16. Nxb6 {[%clk 0:02:21]}  axb6 {[%clk 0:02:11]} 17. Rxd8+ {[%clk 0:02:12]}  Rxd8 {[%clk 0:02:10]} 18. Rd1 {[%clk 0:02:12]}  Rxd1+ {[%clk 0:02:03]} 19. Qxd1 {[%clk 0:02:12]}  Qc6 {[%clk 0:02:03]} 20. Nd2 {[%clk 0:02:04]}  Bg5 {[%clk 0:02:01]} 21. Nc4 {[%clk 0:01:59]}  Qxe4 {[%clk 0:01:55]} 22. Nxb6 {[%clk 0:01:59]}  Kg7 {[%clk 0:01:48]} 23. b3 {[%clk 0:01:54]}  h5 {[%clk 0:01:41]} 24. Nd5 {[%clk 0:01:49]}  Bd2 {[%clk 0:01:36]} 25. g3 {[%clk 0:01:25]}  Qxd5 {[%clk 0:01:33]} 26. b4 {[%clk 0:00:55]}  cxb4 {[%clk 0:01:30]} 27. cxb4 {[%clk 0:00:55]}  Qd4 {[%clk 0:01:30]} 28. a3 {[%clk 0:00:53]}  Bc3 {[%clk 0:01:30]} 29. Qf3 {[%clk 0:00:53]}  e4 {[%clk 0:01:25]} 30. Qe2 {[%clk 0:00:52]}  Qd3 {[%clk 0:01:24]} 31. Kf1 {[%clk 0:00:52]}  Qxe2+ {[%clk 0:01:19]} 32. Kxe2 {[%clk 0:00:53]}  Bd4 {[%clk 0:01:19]} 33. f3 {[%clk 0:00:53]}  f5 {[%clk 0:01:19]} 34. fxe4 {[%clk 0:00:53]}  fxe4 {[%clk 0:01:19]} 35. a4 {[%clk 0:00:53]}  Kf6 {[%clk 0:01:19]} 36. a5 {[%clk 0:00:53]}  Ke5 {[%clk 0:01:19]} 37. b5 {[%clk 0:00:54]}  Kd5 {[%clk 0:01:19]} 38. a6 {[%clk 0:00:55]}  bxa6 {[%clk 0:01:18]} 39. bxa6 {[%clk 0:00:55]}  Kc6 {[%clk 0:01:18]} 40. h3 {[%clk 0:00:55]}  Kb6 {[%clk 0:01:18]} 41. g4 {[%clk 0:00:56]}  Kxa6 {[%clk 0:01:18]} 42. gxh5 {[%clk 0:00:57]}  gxh5 {[%clk 0:01:18]} 0-1


[Site "https://www.chess.com"]

[Event "Titled Tuesday Blitz November 16 2021"]
[White "Ozen, Bahadir"]
[Black "Tologon tegin, Semetei"]
[WhiteFideId "6337058"]
[BlackFideId "13800574"]
[WhiteElo "2503"]
[BlackElo "2224"]
[Result "1/2-1/2"]
[Round "06"]
[TimeControl "180+1"]
[Date "2021.11.16"]
[WhiteClock "0:00:50"]
[BlackClock "0:01:25"]

1. d4 {[%clk 0:03:00]}  Nf6 {[%clk 0:02:59]} 2. Nf3 {[%clk 0:03:01]}  g6 {[%clk 0:02:59]} 3. e3 {[%clk 0:03:01]}  Bg7 {[%clk 0:02:59]} 4. Be2 {[%clk 0:03:02]}  b6 {[%clk 0:02:59]} 5. O-O {[%clk 0:03:02]}  Bb7 {[%clk 0:03:00]} 6. b3 {[%clk 0:03:02]}  O-O {[%clk 0:02:59]} 7. Bb2 {[%clk 0:03:03]}  c5 {[%clk 0:03:00]} 8. c4 {[%clk 0:03:02]}  cxd4 {[%clk 0:02:58]} 9. Nxd4 {[%clk 0:03:03]}  d5 {[%clk 0:02:59]} 10. Na3 {[%clk 0:03:02]}  Nc6 {[%clk 0:02:57]} 11. Nxc6 {[%clk 0:02:49]}  Bxc6 {[%clk 0:02:58]} 12. Rc1 {[%clk 0:02:49]}  Bb7 {[%clk 0:02:52]} 13. Bf3 {[%clk 0:02:49]}  e6 {[%clk 0:02:46]} 14. Qe2 {[%clk 0:02:24]}  Rc8 {[%clk 0:02:44]} 15. Rfd1 {[%clk 0:02:24]}  Qe7 {[%clk 0:02:42]} 16. Nb5 {[%clk 0:02:24]}  Rfd8 {[%clk 0:02:25]} 17. Nxa7 {[%clk 0:02:08]}  Ra8 {[%clk 0:02:24]} 18. Nb5 {[%clk 0:02:08]}  dxc4 {[%clk 0:02:09]} 19. Rxd8+ {[%clk 0:02:04]}  Rxd8 {[%clk 0:02:06]} 20. Bxb7 {[%clk 0:02:04]}  Qxb7 {[%clk 0:02:06]} 21. Rxc4 {[%clk 0:01:51]}  Ne4 {[%clk 0:01:58]} 22. Bxg7 {[%clk 0:01:48]}  Kxg7 {[%clk 0:01:58]} 23. Rd4 {[%clk 0:01:32]}  Rxd4 {[%clk 0:01:46]} 24. Nxd4 {[%clk 0:01:31]}  e5 {[%clk 0:01:42]} 25. Nf3 {[%clk 0:01:26]}  Qd5 {[%clk 0:01:38]} 26. h3 {[%clk 0:01:21]}  f6 {[%clk 0:01:35]} 27. Qc2 {[%clk 0:01:20]}  h5 {[%clk 0:01:28]} 28. Qc7+ {[%clk 0:01:12]}  Kh6 {[%clk 0:01:27]} 29. Qb8 {[%clk 0:01:10]}  Kg7 {[%clk 0:01:26]} 30. Qc7+ {[%clk 0:01:10]}  Kh6 {[%clk 0:01:26]} 31. Qc8 {[%clk 0:01:11]}  Kg7 {[%clk 0:01:25]} 32. Qc7+ {[%clk 0:00:50]} 1/2-1/2


[Site "https://www.chess.com"]

[Event "Titled Tuesday Blitz November 16 2021"]
[White "Remizov, Yaroslav"]
[Black "Alavkin, Arseny"]
[WhiteFideId "34134015"]
[BlackFideId "4120612"]
[WhiteElo "2325"]
[BlackElo "2391"]
[Result "0-1"]
[Round "06"]
[TimeControl "180+1"]
[Date "2021.11.16"]
[WhiteClock "0:00:01"]
[BlackClock "0:00:40"]

1. Nc3 {[%clk 0:02:58]}  c5 {[%clk 0:02:59]} 2. Nf3 {[%clk 0:02:55]}  Nc6 {[%clk 0:02:58]} 3. d4 {[%clk 0:02:53]}  cxd4 {[%clk 0:02:59]} 4. Nxd4 {[%clk 0:02:52]}  g6 {[%clk 0:02:59]} 5. g3 {[%clk 0:02:40]}  Bg7 {[%clk 0:02:59]} 6. Nb3 {[%clk 0:02:41]}  Nf6 {[%clk 0:02:57]} 7. Bg2 {[%clk 0:02:41]}  O-O {[%clk 0:02:58]} 8. O-O {[%clk 0:02:41]}  d6 {[%clk 0:02:58]} 9. Bg5 {[%clk 0:02:31]}  Bd7 {[%clk 0:02:56]} 10. Qd2 {[%clk 0:02:30]}  Re8 {[%clk 0:02:50]} 11. Rad1 {[%clk 0:02:28]}  Rc8 {[%clk 0:02:49]} 12. Bh6 {[%clk 0:02:19]}  Bh8 {[%clk 0:02:48]} 13. a3 {[%clk 0:02:11]}  a6 {[%clk 0:02:48]} 14. f4 {[%clk 0:01:43]}  Qb6+ {[%clk 0:02:38]} 15. e3 {[%clk 0:01:43]}  Ng4 {[%clk 0:02:38]} 16. Nd5 {[%clk 0:01:43]}  Qa7 {[%clk 0:01:55]} 17. Bg5 {[%clk 0:01:43]}  e6 {[%clk 0:01:50]} 18. h3 {[%clk 0:01:40]}  exd5 {[%clk 0:01:50]} 19. hxg4 {[%clk 0:01:40]}  Bxg4 {[%clk 0:01:51]} 20. Rde1 {[%clk 0:01:38]}  d4 {[%clk 0:01:47]} 21. e4 {[%clk 0:01:13]}  d3+ {[%clk 0:01:42]} 22. Kh2 {[%clk 0:01:13]}  dxc2 {[%clk 0:01:42]} 23. Qxc2 {[%clk 0:01:08]}  Na5 {[%clk 0:01:32]} 24. Qd3 {[%clk 0:01:06]}  Nxb3 {[%clk 0:01:28]} 25. Qxb3 {[%clk 0:01:07]}  Qd4 {[%clk 0:01:26]} 26. e5 {[%clk 0:00:45]}  Be6 {[%clk 0:01:20]} 27. Qxb7 {[%clk 0:00:42]}  dxe5 {[%clk 0:01:20]} 28. f5 {[%clk 0:00:13]}  gxf5 {[%clk 0:01:15]} 29. Be3 {[%clk 0:00:09]}  Qc4 {[%clk 0:01:05]} 30. Rc1 {[%clk 0:00:07]}  Qb5 {[%clk 0:01:02]} 31. Rxc8 {[%clk 0:00:05]}  Rxc8 {[%clk 0:01:01]} 32. Qf3 {[%clk 0:00:04]}  e4 {[%clk 0:00:58]} 33. Qh5 {[%clk 0:00:03]}  Qxb2 {[%clk 0:00:58]} 34. Qg5+ {[%clk 0:00:03]}  Bg7 {[%clk 0:00:57]} 35. Rd1 {[%clk 0:00:03]}  Qf6 {[%clk 0:00:54]} 36. Qf4 {[%clk 0:00:02]}  h6 {[%clk 0:00:46]} 37. Kg1 {[%clk 0:00:02]}  Kh7 {[%clk 0:00:45]} 38. Bd4 {[%clk 0:00:02]}  Qg5 {[%clk 0:00:42]} 39. Qd6 {[%clk 0:00:02]}  Rd8 {[%clk 0:00:40]} 40. Qxd8 {[%clk 0:00:01]} 0-1


[Site "https://www.chess.com"]

[Event "Titled Tuesday Blitz November 16 2021"]
[White "Shubin, Kirill"]
[Black "Sieciechowicz, Marcin"]
[WhiteFideId "34119962"]
[BlackFideId "1130170"]
[WhiteElo "2501"]
[BlackElo "2295"]
[Result "1-0"]
[Round "06"]
[TimeControl "180+1"]
[Date "2021.11.16"]
[WhiteClock "0:00:21"]
[BlackClock "0:00:01"]

1. e4 {[%clk 0:03:00]}  e6 {[%clk 0:02:59]} 2. d4 {[%clk 0:03:00]}  d5 {[%clk 0:02:59]} 3. Nc3 {[%clk 0:03:01]}  Nf6 {[%clk 0:02:59]} 4. Bg5 {[%clk 0:03:01]}  Bb4 {[%clk 0:02:59]} 5. e5 {[%clk 0:02:59]}  h6 {[%clk 0:02:59]} 6. Be3 {[%clk 0:03:00]}  Ne4 {[%clk 0:02:57]} 7. Qg4 {[%clk 0:02:58]}  g6 {[%clk 0:02:54]} 8. a3 {[%clk 0:02:57]}  Bxc3+ {[%clk 0:02:53]} 9. bxc3 {[%clk 0:02:57]}  c5 {[%clk 0:02:54]} 10. Bd3 {[%clk 0:02:56]}  h5 {[%clk 0:02:53]} 11. Qf4 {[%clk 0:02:51]}  g5 {[%clk 0:02:49]} 12. Qf3 {[%clk 0:02:51]}  Nxc3 {[%clk 0:02:49]} 13. dxc5 {[%clk 0:02:37]}  Nc6 {[%clk 0:02:46]} 14. Qg3 {[%clk 0:02:33]}  Ne4 {[%clk 0:02:08]} 15. Bxe4 {[%clk 0:02:30]}  dxe4 {[%clk 0:02:09]} 16. Bxg5 {[%clk 0:02:19]}  Qa5+ {[%clk 0:02:08]} 17. c3 {[%clk 0:02:18]}  h4 {[%clk 0:01:46]} 18. Qe3 {[%clk 0:02:12]}  Nxe5 {[%clk 0:01:45]} 19. Rd1 {[%clk 0:01:49]}  Rg8 {[%clk 0:01:16]} 20. Rd8+ {[%clk 0:01:43]}  Qxd8 {[%clk 0:01:11]} 21. Bxd8 {[%clk 0:01:44]}  Kxd8 {[%clk 0:01:12]} 22. Qd4+ {[%clk 0:01:42]}  Nd7 {[%clk 0:01:07]} 23. Nh3 {[%clk 0:01:33]}  Rxg2 {[%clk 0:01:00]} 24. Ke2 {[%clk 0:01:32]}  a5 {[%clk 0:00:45]} 25. Qh8+ {[%clk 0:01:09]}  Kc7 {[%clk 0:00:41]} 26. Qxh4 {[%clk 0:01:08]}  Ra6 {[%clk 0:00:32]} 27. Qf4+ {[%clk 0:01:04]}  e5 {[%clk 0:00:30]} 28. Qxe4 {[%clk 0:00:59]}  Rgg6 {[%clk 0:00:24]} 29. Rd1 {[%clk 0:00:56]}  Rac6 {[%clk 0:00:21]} 30. Rd6 {[%clk 0:00:51]}  Rxc5 {[%clk 0:00:11]} 31. Rxg6 {[%clk 0:00:49]}  fxg6 {[%clk 0:00:12]} 32. Ng5 {[%clk 0:00:48]}  Rxc3 {[%clk 0:00:11]} 33. Qd5 {[%clk 0:00:46]}  Rc6 {[%clk 0:00:07]} 34. Qxa5+ {[%clk 0:00:44]}  Kb8 {[%clk 0:00:05]} 35. Ne4 {[%clk 0:00:37]}  b6 {[%clk 0:00:05]} 36. Qd5 {[%clk 0:00:36]}  Kc7 {[%clk 0:00:04]} 37. Ng5 {[%clk 0:00:34]}  Bb7 {[%clk 0:00:04]} 38. Qg8 {[%clk 0:00:28]}  Rf6 {[%clk 0:00:04]} 39. Qg7 {[%clk 0:00:25]}  Rc6 {[%clk 0:00:02]} 40. h4 {[%clk 0:00:24]}  Rd6 {[%clk 0:00:02]} 41. Nf7 {[%clk 0:00:23]}  Re6 {[%clk 0:00:01]} 42. Qg8 {[%clk 0:00:22]}  Be4 {[%clk 0:00:01]} 43. Qd8+ {[%clk 0:00:21]} 1-0


[Site "https://www.chess.com"]

[Event "Titled Tuesday Blitz November 16 2021"]
[White "Tari, Aryan"]
[Black "Djordjevic, Vuk"]
[WhiteFideId "1510045"]
[BlackFideId "902098"]
[WhiteElo "2656"]
[BlackElo "2463"]
[Result "0-1"]
[Round "06"]
[TimeControl "180+1"]
[Date "2021.11.16"]
[WhiteClock "0:00:01"]
[BlackClock "0:00:08"]

1. e4 {[%clk 0:03:00]}  e6 {[%clk 0:02:59]} 2. b3 {[%clk 0:02:47]}  d5 {[%clk 0:02:59]} 3. Bb2 {[%clk 0:02:47]}  Nf6 {[%clk 0:02:57]} 4. exd5 {[%clk 0:02:39]}  exd5 {[%clk 0:02:53]} 5. Nf3 {[%clk 0:02:40]}  Bd6 {[%clk 0:02:52]} 6. Be2 {[%clk 0:02:35]}  O-O {[%clk 0:02:52]} 7. O-O {[%clk 0:02:35]}  Bg4 {[%clk 0:02:43]} 8. c4 {[%clk 0:02:24]}  Nbd7 {[%clk 0:02:35]} 9. h3 {[%clk 0:02:19]}  Bh5 {[%clk 0:02:32]} 10. Nh4 {[%clk 0:02:05]}  Bxe2 {[%clk 0:02:26]} 11. Qxe2 {[%clk 0:02:06]}  Re8 {[%clk 0:02:26]} 12. Qd1 {[%clk 0:02:03]}  dxc4 {[%clk 0:02:19]} 13. bxc4 {[%clk 0:02:03]}  Ne5 {[%clk 0:02:16]} 14. Qc2 {[%clk 0:01:34]}  Nd3 {[%clk 0:01:48]} 15. Nf5 {[%clk 0:01:08]}  Bc5 {[%clk 0:01:16]} 16. Nc3 {[%clk 0:00:46]}  Re5 {[%clk 0:01:03]} 17. Ne3 {[%clk 0:00:32]}  Rg5 {[%clk 0:00:45]} 18. Ncd5 {[%clk 0:00:28]}  Nxb2 {[%clk 0:00:33]} 19. Qxb2 {[%clk 0:00:29]}  Nxd5 {[%clk 0:00:33]} 20. cxd5 {[%clk 0:00:30]}  b6 {[%clk 0:00:29]} 21. d4 {[%clk 0:00:29]}  Bd6 {[%clk 0:00:28]} 22. f4 {[%clk 0:00:28]}  Rh5 {[%clk 0:00:23]} 23. Rae1 {[%clk 0:00:23]}  Qh4 {[%clk 0:00:22]} 24. Qf2 {[%clk 0:00:10]}  Qxf2+ {[%clk 0:00:20]} 25. Rxf2 {[%clk 0:00:11]}  Re8 {[%clk 0:00:20]} 26. g4 {[%clk 0:00:08]}  Rxh3 {[%clk 0:00:19]} 27. Rfe2 {[%clk 0:00:09]}  g6 {[%clk 0:00:15]} 28. Kg2 {[%clk 0:00:09]}  Rh4 {[%clk 0:00:13]} 29. Kg3 {[%clk 0:00:07]}  g5 {[%clk 0:00:13]} 30. Nf5 {[%clk 0:00:07]}  Bxf4+ {[%clk 0:00:12]} 31. Kf3 {[%clk 0:00:03]}  Rh3+ {[%clk 0:00:13]} 32. Kg2 {[%clk 0:00:03]}  Rh2+ {[%clk 0:00:13]} 33. Kf3 {[%clk 0:00:04]}  Rexe2 {[%clk 0:00:13]} 34. Rxe2 {[%clk 0:00:05]}  Rxe2 {[%clk 0:00:10]} 35. Kxe2 {[%clk 0:00:06]}  Kf8 {[%clk 0:00:11]} 36. a4 {[%clk 0:00:06]}  Ke8 {[%clk 0:00:11]} 37. Kd3 {[%clk 0:00:06]}  a6 {[%clk 0:00:10]} 38. Kc4 {[%clk 0:00:06]}  Kd7 {[%clk 0:00:11]} 39. Nh6 {[%clk 0:00:06]}  Ke7 {[%clk 0:00:11]} 40. Nf5+ {[%clk 0:00:04]}  Kf6 {[%clk 0:00:11]} 41. Nh6 {[%clk 0:00:04]}  Kg6 {[%clk 0:00:12]} 42. Nf5 {[%clk 0:00:03]}  h5 {[%clk 0:00:12]} 43. Ne7+ {[%clk 0:00:04]}  Kf6 {[%clk 0:00:13]} 44. d6 {[%clk 0:00:02]}  cxd6 {[%clk 0:00:12]} 45. Nd5+ {[%clk 0:00:02]}  Kg6 {[%clk 0:00:11]} 46. gxh5+ {[%clk 0:00:01]}  Kxh5 {[%clk 0:00:12]} 47. Nxb6 {[%clk 0:00:01]}  g4 {[%clk 0:00:12]} 48. Kd3 {[%clk 0:00:02]}  g3 {[%clk 0:00:12]} 49. Nd5 {[%clk 0:00:02]}  Kg4 {[%clk 0:00:12]} 50. Ke2 {[%clk 0:00:02]}  f5 {[%clk 0:00:12]} 51. Nf6+ {[%clk 0:00:01]}  Kg5 {[%clk 0:00:11]} 52. Nd5 {[%clk 0:00:01]}  Kg4 {[%clk 0:00:08]} 53. Nf6+ {[%clk 0:00:01]}  Kh3 {[%clk 0:00:08]} 54. Nd5 {[%clk 0:00:01]}  g2 {[%clk 0:00:08]} 55. Nxf4+ {[%clk 0:00:01]}  Kg3 {[%clk 0:00:08]} 0-1


[Site "https://www.chess.com"]

[Event "Titled Tuesday Blitz November 16 2021"]
[White "Terry, Renato"]
[Black "vizumatv4hoda"]
[WhiteFideId "3803457"]
[WhiteElo "2577"]
[BlackElo "2766"]
[Result "1/2-1/2"]
[Round "06"]
[TimeControl "180+1"]
[Date "2021.11.16"]
[WhiteClock "0:00:04"]
[BlackClock "0:00:13"]

1. d4 {[%clk 0:03:00]}  Nf6 {[%clk 0:03:00]} 2. Bg5 {[%clk 0:03:01]}  Ne4 {[%clk 0:03:00]} 3. Bf4 {[%clk 0:03:01]}  c5 {[%clk 0:03:01]} 4. f3 {[%clk 0:03:01]}  Qa5+ {[%clk 0:03:01]} 5. c3 {[%clk 0:03:01]}  Nf6 {[%clk 0:03:02]} 6. d5 {[%clk 0:03:00]}  Qb6 {[%clk 0:03:02]} 7. Bc1 {[%clk 0:03:00]}  e6 {[%clk 0:03:00]} 8. e4 {[%clk 0:03:00]}  exd5 {[%clk 0:03:01]} 9. exd5 {[%clk 0:03:01]}  Bd6 {[%clk 0:03:01]} 10. Na3 {[%clk 0:03:01]}  O-O {[%clk 0:02:57]} 11. Nc4 {[%clk 0:02:41]}  Re8+ {[%clk 0:02:57]} 12. Kf2 {[%clk 0:02:37]}  Qc7 {[%clk 0:02:56]} 13. a4 {[%clk 0:02:37]}  b6 {[%clk 0:02:48]} 14. Nh3 {[%clk 0:02:29]}  Bb7 {[%clk 0:02:42]} 15. Nxd6 {[%clk 0:02:29]}  Qxd6 {[%clk 0:02:43]} 16. c4 {[%clk 0:02:30]}  Qe5 {[%clk 0:02:39]} 17. Ra3 {[%clk 0:02:25]}  Na6 {[%clk 0:02:31]} 18. Re3 {[%clk 0:02:23]}  Qf5 {[%clk 0:02:31]} 19. Rxe8+ {[%clk 0:02:20]}  Rxe8 {[%clk 0:02:32]} 20. Bd3 {[%clk 0:02:20]}  Qe5 {[%clk 0:02:26]} 21. Re1 {[%clk 0:01:55]}  Qd4+ {[%clk 0:02:21]} 22. Kf1 {[%clk 0:01:54]}  Rxe1+ {[%clk 0:02:21]} 23. Kxe1 {[%clk 0:01:54]}  Qe5+ {[%clk 0:01:59]} 24. Qe2 {[%clk 0:01:22]}  Nb4 {[%clk 0:01:48]} 25. Nf4 {[%clk 0:00:32]}  Nxd3+ {[%clk 0:01:35]} 26. Nxd3 {[%clk 0:00:32]}  Qxh2 {[%clk 0:01:36]} 27. Bf4 {[%clk 0:00:28]}  Qg1+ {[%clk 0:01:35]} 28. Kd2 {[%clk 0:00:25]}  Qd4 {[%clk 0:01:30]} 29. b3 {[%clk 0:00:23]}  Qa1 {[%clk 0:01:22]} 30. Qe7 {[%clk 0:00:17]}  h6 {[%clk 0:01:22]} 31. Kc2 {[%clk 0:00:04]}  Qf1 {[%clk 0:01:07]} 32. Ne1 {[%clk 0:00:05]}  Qf2+ {[%clk 0:01:03]} 33. Kd1 {[%clk 0:00:02]}  Qd4+ {[%clk 0:01:02]} 34. Bd2 {[%clk 0:00:02]}  Qb2 {[%clk 0:00:53]} 35. Qe3 {[%clk 0:00:02]}  Ba6 {[%clk 0:00:44]} 36. g4 {[%clk 0:00:01]}  Qb1+ {[%clk 0:00:43]} 37. Ke2 {[%clk 0:00:02]}  Nxd5 {[%clk 0:00:43]} 38. Qe8+ {[%clk 0:00:02]}  Kh7 {[%clk 0:00:44]} 39. Qxf7 {[%clk 0:00:02]}  Nf6 {[%clk 0:00:40]} 40. Bc3 {[%clk 0:00:02]}  Qg6 {[%clk 0:00:37]} 41. Qe7 {[%clk 0:00:02]}  Bb7 {[%clk 0:00:34]} 42. Bxf6 {[%clk 0:00:01]}  Qxf6 {[%clk 0:00:35]} 43. Qxd7 {[%clk 0:00:01]}  Bc6 {[%clk 0:00:35]} 44. Qd3+ {[%clk 0:00:01]}  Kg8 {[%clk 0:00:35]} 45. Qe3 {[%clk 0:00:01]}  a6 {[%clk 0:00:30]} 46. Nd3 {[%clk 0:00:01]}  Kh7 {[%clk 0:00:28]} 47. Ne5 {[%clk 0:00:02]}  Be8 {[%clk 0:00:28]} 48. Qe4+ {[%clk 0:00:03]}  Kg8 {[%clk 0:00:28]} 49. Ke3 {[%clk 0:00:03]}  Qd6 {[%clk 0:00:27]} 50. f4 {[%clk 0:00:03]}  Kf8 {[%clk 0:00:21]} 51. Qf5+ {[%clk 0:00:03]}  Kg8 {[%clk 0:00:22]} 52. Qe4 {[%clk 0:00:04]}  Kf8 {[%clk 0:00:22]} 53. Qa8 {[%clk 0:00:04]}  Qd4+ {[%clk 0:00:20]} 54. Kf3 {[%clk 0:00:05]}  Qd1+ {[%clk 0:00:16]} 55. Kf2 {[%clk 0:00:03]}  Qc2+ {[%clk 0:00:17]} 56. Kg1 {[%clk 0:00:02]}  Qd1+ {[%clk 0:00:16]} 57. Kg2 {[%clk 0:00:02]}  Qc2+ {[%clk 0:00:17]} 58. Kg1 {[%clk 0:00:02]}  Qc1+ {[%clk 0:00:15]} 59. Kf2 {[%clk 0:00:02]}  Qb2+ {[%clk 0:00:15]} 60. Kg1 {[%clk 0:00:01]}  Qc1+ {[%clk 0:00:14]} 61. Kg2 {[%clk 0:00:01]}  Qd2+ {[%clk 0:00:14]} 62. Kg3 {[%clk 0:00:01]}  Qe3+ {[%clk 0:00:14]} 63. Qf3 {[%clk 0:00:02]}  Qe1+ {[%clk 0:00:14]} 64. Kg2 {[%clk 0:00:01]}  Qd2+ {[%clk 0:00:14]} 65. Kg3 {[%clk 0:00:01]}  Qc1 {[%clk 0:00:14]} 66. Kg2 {[%clk 0:00:02]}  Qb2+ {[%clk 0:00:14]} 67. Kh3 {[%clk 0:00:02]}  b5 {[%clk 0:00:14]} 68. axb5 {[%clk 0:00:02]}  axb5 {[%clk 0:00:15]} 69. Qe3 {[%clk 0:00:02]}  Qb1 {[%clk 0:00:13]} 70. Qxc5+ {[%clk 0:00:03]}  Kg8 {[%clk 0:00:13]} 71. Qd5+ {[%clk 0:00:04]}  Kh7 {[%clk 0:00:13]} 72. Qd3+ {[%clk 0:00:02]}  Qxd3+ {[%clk 0:00:08]} 73. Nxd3 {[%clk 0:00:02]}  bxc4 {[%clk 0:00:08]} 74. bxc4 {[%clk 0:00:03]}  Kg6 {[%clk 0:00:09]} 75. Kg3 {[%clk 0:00:03]}  Kf6 {[%clk 0:00:10]} 76. Kf3 {[%clk 0:00:03]}  Bc6+ {[%clk 0:00:11]} 77. Ke3 {[%clk 0:00:02]}  g6 {[%clk 0:00:11]} 78. Ne5 {[%clk 0:00:03]}  Bb7 {[%clk 0:00:11]} 79. c5 {[%clk 0:00:04]}  h5 {[%clk 0:00:11]} 80. g5+ {[%clk 0:00:02]}  Kf5 {[%clk 0:00:12]} 81. c6 {[%clk 0:00:03]}  Ba6 {[%clk 0:00:11]} 82. c7 {[%clk 0:00:03]}  h4 {[%clk 0:00:12]} 83. Kf3 {[%clk 0:00:02]}  Bb7+ {[%clk 0:00:11]} 84. Ke3 {[%clk 0:00:01]}  h3 {[%clk 0:00:11]} 85. Kf2 {[%clk 0:00:02]}  h2 {[%clk 0:00:12]} 86. c8=Q+ {[%clk 0:00:01]}  Bxc8 {[%clk 0:00:11]} 87. Kg2 {[%clk 0:00:02]}  Kxf4 {[%clk 0:00:12]} 88. Nxg6+ {[%clk 0:00:02]}  Kxg5 {[%clk 0:00:12]} 89. Ne7 {[%clk 0:00:03]}  Bb7+ {[%clk 0:00:13]} 90. Kxh2 {[%clk 0:00:04]} 1/2-1/2


[Site "https://www.chess.com"]